Cogmind - Beta 16 @@@ ROGUE MODE // 2025.11.03 @ 08:06:02 Player: Rocko1345 Result: Destroyed by D-53 Grenadier with Mini Grenade Launcher Performance ------------- Evolutions (2) 1000 Regions Visited (4) 800 Robots Destroyed (82) 410 Value Destroyed (2307) 2307 Prototype IDs (9) 180 Alien Tech Used (0) 0 Bonus (33) 33 TOTAL SCORE: 4730 Bonus ------- High Alert Combat Kills 33 Cogmind --------- Core Integrity 0/550 Matter 290/300 Energy 261/265 System Corruption 21% Temperature Cool (2) Movement Walking (90) Location -8/Storage Parts ------- > --- POWER (1) -------- Improved Ion Engine > --- PROPULSION (4) --- VSS Leg VSS Leg VSS Leg (fused) > --- UTILITY (4) ------ Improved Terrain Scanner Improved Terrain Scan Processor > --- WEAPON (2) ------- Katana > --- INVENTORY (5) ---- Hardened Medium Armor Plating Improved Assault Rifle Shock Bomb Launcher Peak State ------------ > --- POWER ------------ Heavy Ion Engine > --- PROPULSION ------- Light Treads Light Treads Light Treads Light Treads > --- UTILITY ---------- Improved Heat Sink Huge Storage Unit Recoil Stabilizer Hacking Suite > --- WEAPON ----------- Advanced Beam Rifle Gauss Rifle > --- INVENTORY -------- Light Treads Light Treads Light Treads Armored Wheel High-capacity Battery Medium Matter Pod Improved Terrain Scanner Improved Terrain Scan Processor Microactuators Microactuators Improved Light Armor Plating Drone Bay Advanced Beam Rifle Advanced Beam Cannon Advanced Beam Cannon Improved Assault Rifle Improved Assault Rifle Enhanced Autogun Gauss Rifle Gauss Rifle Shock Bomb Launcher Datajack Remote Datajack Katana Axe [Rating: 32] Favorites ----------- Power Nuclear Core Engine Heavy Ion Engine Power Core Nuclear Core Propulsion Light Treads Treads Light Treads Leg Aluminum Leg Wheel Armored Wheel Flight Unit Flight Unit Utility Huge Storage Unit Device Recoil Stabilizer Storage Huge Storage Unit Processor Improved Signal Interpreter Hackware Hacking Suite Weapon Shock Rifle Energy Gun Shock Rifle Energy Cannon Advanced Beam Cannon Ballistic Gun Gauss Rifle Launcher Shock Bomb Launcher Slashing Weapon Axe Build | -11 -10 -9 -8 -8 ------- Run | Yrd Mat Mat Mat Sto Slots Evolved 4 | . . 2 2 . Power . | . . . . . Propulsion 2 | . . 2 . . Utility 2 | . . . 2 . Weapon . | . . . . . Parts Attached 57 | 6 6 17 11 17 Power 6 | 1 1 1 . 3 Engine 3 | 1 . . . 2 Core 3 | . 1 1 . 1 Reactor . | . . . . . Propulsion 23 | 2 3 8 5 5 Treads 9 | . 1 3 5 . Leg 5 | 2 . . . 3 Wheel 2 | . . . . 2 Hover . | . . . . . Flight 7 | . 2 5 . . Utility 11 | 1 1 3 2 4 Device 5 | . 1 2 1 1 Storage 3 | 1 . 1 . 1 Processor 2 | . . . . 2 Hackware 1 | . . . 1 . Protection . | . . . . . Artifact . | . . . . . Weapon 17 | 2 1 5 4 5 Energy Gun 4 | . . 2 . 2 Energy Cannon 1 | . . . 1 . Ballistic Gun 9 | 2 1 2 3 1 Ballistic Cannon . | . . . . . Launcher 1 | . . 1 . . Special Weapon . | . . . . . Impact Weapon . | . . . . . Slashing Weapon 2 | . . . . 2 Piercing Weapon . | . . . . . Special Melee Weapon . | . . . . . Unidentified Prototypes 3 | . . 1 1 1 Corrupted Parts 3 | . . 2 . 1 System Corruption 13 | . . 3 . 10 Parts Lost 30 | . . 11 . 19 Power 3 | . . 1 . 2 Propulsion 15 | . . 8 . 7 Utility 4 | . . . . 4 Weapon 8 | . . 2 . 6 Highest Loss Streak 10 | . . 8 . 10 To Critical Strikes . | . . . . . Average Backups 11 | 1 4 3 12 21 Power . | . 1 . . . Propulsion 2 | . 2 . 3 3 Utility 2 | . . . 2 6 Weapon 4 | . . 2 5 8 Tool/Special . | . . . . . Unused Backups 16 | . 2 . . 14 Power 1 | . 1 . . . Propulsion 3 | . . . . 3 Utility 6 | . . . . 6 Weapon 4 | . 1 . . 3 Tool/Special 2 | . . . . 2 Average Slot Usage (%) 82 | . 92 72 97 77 Engine 2 | . 12 . . 5 Core 6 | . 1 9 9 1 Treads 22 | . . 17 34 22 Leg 3 | . 24 . . 3 Flight 3 | . 3 10 . . Device 12 | . 9 8 17 11 Storage 8 | . 12 6 9 9 Processor 1 | . . . . 4 Hackware 2 | . . . 8 2 Energy Gun 5 | . . 10 . 5 Ballistic Gun 12 | . 26 8 17 6 Peak Build Rating 32 | 6 10 18 30 32 Average Rating 19 | 4 8 13 25 25 On Entrance 12 | . 6 7 17 30 Avg Prop Armor Cover (%) 7 | . . 2 . 19 Naked Turns 2 | . 1 . . 1 Heaviest Build 97 | 13 14 95 97 97 Greatest Support 80 | 20 20 40 80 80 Greatest Overweight (x) 28 | . . 4 1 28 Average Overweight (x) . | . . . 1 1 Largest Inventory Capacity 25 | 8 8 25 25 25 Average Capacity 19 | 6 7 16 25 22 Most Carried 25 | 3 8 7 20 25 Average Carried 11 | 1 4 3 12 21 Final Capacity 25 | 8 5 25 25 5 Final Carried 20 | 3 2 7 20 3 Class Distribution -------------------- 93% | Mutant 6% | Scavenger-Mutant Dominant Class ---------------- Mutant | -10/Materials Mutant | -9/Materials Mutant | -8/Materials Mutant | -8/Storage Resources | -11 -10 -9 -8 -8 ----------- Run | Yrd Mat Mat Mat Sto Matter Collected 1674 | 221 211 361 420 461 Remotely . | . . . . . Salvage Created 3294 | . 269 1428 491 1106 Parts 180 | . 15 89 21 55 Haulers Intercepted 4 | . . 3 . 1 Recyclers Shooed 3 | . 1 . . 2 Parts Field Recycled . | . . . . . Retrieved Matter . | . . . . . Parts Self-Destructed . | . . . . . Prevented . | . . . . . Parts Restored . | . . . . . Kills | -11 -10 -9 -8 -8 ------- Run | Yrd Mat Mat Mat Sto Combat Hostiles Destroyed 54 | . 5 23 6 20 Melee 3 | . . . . 3 Guns 42 | . 5 18 6 13 AOE 8 | . . 5 . 3 Classes Destroyed 12 | . 4 4 1 3 Worker 7 | . . 3 1 3 Builder 4 | . . 4 . . Hauler 4 | . . 3 . 1 Recycler 5 | . 1 1 2 1 Watcher 8 | . 2 4 1 1 Swarmer 11 | . 3 5 . 3 Grunt 31 | . 2 15 3 11 Brawler 1 | . . . . 1 Duelist 2 | . . . . 2 Protector 1 | . . . . 1 Sentry 7 | . . 3 2 2 Hunter 1 | . . . 1 . Best Kill Streak 10 | . 4 10 4 7 Combat Bots Only 6 | . 3 6 3 4 Max Kills in Single Turn 3 | . 1 3 2 2 Gunslinging . | . . . . . Exploded 2 | . . 2 . 2 Melee 1 | . . . . 1 Uniques/NPCs Destroyed . | . . . . . Combat | -11 -10 -9 -8 -8 -------- Run | Yrd Mat Mat Mat Sto Hostile Shots Fired 415 | . 46 134 42 193 Missed 146 | . 14 52 13 67 Hits 269 | . 32 82 29 126 Melee 6 | . . . . 6 Projectile 263 | . 32 82 29 120 AOE 2 | . . . . 2 Critical Strikes 10 | . 1 . . 9 Damage Taken 3796 | . 339 978 432 2047 Core 853 | . 115 176 96 466 Absorbed by Shields . | . . . . . Core Remaining (%) 70 | 100 54 56 . . Volleys Fired 226 | . 23 107 35 61 Largest 2 | . 2 2 2 2 Hottest 122 | . 40 100 56 122 Shots Fired 381 | . 46 153 70 112 Gun 371 | . 46 150 70 105 Cannon . | . . . . . Launcher 10 | . . 3 . 7 Special . | . . . . . Kinetic 227 | . 46 66 70 45 Thermal 60 | . . . . 60 Explosive . | . . . . . Electromagnetic 94 | . . 87 . 7 Robot Hit Streak 17 | . 8 17 10 14 Robot Miss Streak 7 | . 5 7 3 4 Penetration Max . | . . . . . Secondary Targets 2 | . 1 . . 1 Max Gunslinging Chain 1 | . 1 . . 1 Shots Hit Robots 238 | . 27 93 47 71 Core Hits 126 | . 14 50 19 43 Critical Kills 1 | . . 1 . . Critical Parts Destroyed . | . . . . . Critical Strikes 3 | . . 1 . 2 Burn 1 | . . . . 1 Destroy 1 | . . 1 . . Sever 1 | . . . . 1 Melee Attacks 18 | . . . . 18 Impact . | . . . . . Slashing 18 | . . . . 18 Piercing . | . . . . . Sneak Attacks . | . . . . . Combat Hostiles . | . . . . . Follow-up Attacks . | . . . . . Damage Inflicted 5518 | . 309 2258 822 2129 Guns 3969 | . 309 1615 816 1229 Cannons . | . . . . . Explosions 1204 | . . 643 . 561 Melee 339 | . . . . 339 Ramming 6 | . . . 6 . Kinetic 2363 | . 309 724 816 514 Thermal 1218 | . . 350 . 868 Explosive . | . . . . . Electromagnetic 1592 | . . 1184 . 408 Impact . | . . . . . Slashing 339 | . . . . 339 Piercing . | . . . . . Highest Corruption 21 | . . 3 . 21 Average Corruption 16 | . . 2 . 19 Corruption Purged . | . . . . . Corruption Blocked . | . . . . . Effects 21 | . . 1 . 20 Message Errors 5 | . . . . 5 Matter Fused 6 | . . 1 . 5 Heat Flow Errors 3 | . . . . 3 Energy Discharges 5 | . . . . 5 Parts Fused 1 | . . . . 1 Data Loss (minor) 1 | . . . . 1 Overload Shots . | . . . . . Overflow Damage 30 | . . 30 . . Projectiles . | . . . . . Explosions 30 | . . 30 . . Melee . | . . . . . Knockbacks . | . . . . . Impact . | . . . . . Kinetic . | . . . . . Secondary . | . . . . . Self-Inflicted Damage 76 | . . 34 . 42 Shots 3 | . . 1 . 2 Rammed 1 | . . . 1 . Targets Rammed 2 | . . . 2 . Kicked . | . . . . . Crushed 1 | . . . 1 . Highest Temperature 333 | . 37 277 . 333 Average Temperature 61 | . 15 63 . 65 Received Heat Transfer 1671 | . 138 399 162 972 Effects 2 | . . . . 2 Energy Bleed 1 | . . . . 1 Interference 1 | . . . . 1 Siege Activations . | . . . . . Martial Activations . | . . . . . Shielding Activations . | . . . . . Robots Disrupted . | . . . . . Combat Hostiles . | . . . . . Robots Corrupted 3 | . . 2 . 1 Combat Hostiles 1 | . . . . 1 Parts Fried 10 | . . 8 . 2 Impact Corruptions . | . . . . . Robots Melted . | . . . . . Combat Hostiles . | . . . . . Parts Melted 2 | . . . . 2 Heat Transferred 1942 | . . 400 . 1542 Parts Sabotaged . | . . . . . Parts Stolen . | . . . . . Parts Stripped . | . . . . . Power Chain Reactions 9 | . . 7 . 2 Alert | -11 -10 -9 -8 -8 ------- Run | Yrd Mat Mat Mat Sto Maximum Alert Level 2 | . . 1 . 2 Low Security (%) 76 | 100 100 62 100 60 Level 1 21 | . . 37 . 30 Level 2 2 | . . . . 9 Level 3 . | . . . . . Level 4 . | . . . . . Level 5 . | . . . . . High Security . | . . . . . Max Security . | . . . . . Peak Influence 425 | . 70 311 107 425 Initial 107 | . . 10 107 . Average 95 | . 22 124 22 160 Influence Increases 1840 | . 139 762 193 746 Destroy 0b10 Robot/C 1060 | . 100 460 120 380 Destroy 0b10 Robot/NC 145 | . 15 75 20 35 Destroy Leader 244 | . 24 124 32 64 Successful Hack 36 | . . 28 4 4 Disable Machine 105 | . . 60 15 30 Anti-Garrison Action 150 | . . . . 150 Destroy Structure 25 | . . 15 2 8 Lose Combat Pursuer 75 | . . . . 75 Influence Decreases 1545 | . 114 532 448 451 Entered New Map 163 | . . 15 148 . Time Decay 1072 | . 114 387 300 271 Lost Part 290 | . . 110 . 180 Lost Ally 20 | . . 20 . . Squads Dispatched 9 | . . 3 2 4 Investigation 2 | . . 1 1 . Extermination . | . . . . . Reinforcement 4 | . . 2 1 1 Assault 2 | . . . . 2 Garrison 1 | . . . . 1 Intercept . | . . . . . Searches Triggered . | . . . . . Construction Impeded 1 | . . 1 . . Haulers Reinforced . | . . . . . Active Scanning Responses . | . . . . . Cargo Convoy Interrupts . | . . . . . Stealth | -11 -10 -9 -8 -8 --------- Run | Yrd Mat Mat Mat Sto Distress Signals 6 | . . 4 . 2 Communications Jammed . | . . . . . Distress Signals . | . . . . . Times Spotted 100 | . 7 46 8 39 Peak Tracking Total 11 | . 3 7 2 11 Tactical Retreats 4 | . . . . 4 Traps | -11 -10 -9 -8 -8 ------- Run | Yrd Mat Mat Mat Sto Traps Triggered 1 | . . . 1 . Indirectly . | . . . . . Trap Hack Attempts . | . . . . . Triggered . | . . . . . Disarmed . | . . . . . Reprogrammed . | . . . . . Reused . | . . . . . Traps Extracted . | . . . . . Installed . | . . . . . Triggered . | . . . . . Machines | -11 -10 -9 -8 -8 ---------- Run | Yrd Mat Mat Mat Sto Machines Disabled 8 | . . 4 1 3 Max in Single Turn 1 | . . 1 1 1 Garrison Access 1 | . . . . 1 Machines Repaired . | . . . . . Machines Dismantled . | . . . . . Machines Sabotaged . | . . . . . Overloaded Fab Kills . | . . . . . Hacking | -11 -10 -9 -8 -8 --------- Run | Yrd Mat Mat Mat Sto Machines Accessed 13 | . 1 7 1 4 Terminals 13 | . 1 7 1 4 Fabricators . | . . . . . Repair Stations . | . . . . . Recycling Units . | . . . . . Scanalyzers . | . . . . . Garrison Access . | . . . . . Total Hacks 35 | . 2 24 3 6 Successful 16 | . . 12 2 2 Failed 19 | . 2 12 1 4 Catastrophic 2 | . . 1 . 1 Database Lockouts . | . . . . . Manual 14 | . . 13 1 . Terminals 35 | . 2 24 3 6 Fabricators . | . . . . . Repair Stations . | . . . . . Recycling Units . | . . . . . Scanalyzers . | . . . . . Garrison Access . | . . . . . Terminal Hacks 10 | . . 7 1 2 Prototype ID Bank 3 | . . 2 1 . Open Door 1 | . . . . 1 Level Access Points 1 | . . 1 . . Locate Traps 1 | . . . . 1 Zone Layout 4 | . . 4 . . Fabricator Hacks . | . . . . . Repair Station Hacks . | . . . . . Recycling Unit Hacks . | . . . . . Scanalyzer . | . . . . . Garrison Access Hacks . | . . . . . Unauthorized Hacks 6 | . . 5 1 . Terminals 6 | . . 5 1 . Assimilate 2 | . . 2 . . Botnet 4 | . . 3 1 . Fabricators . | . . . . . Repair Stations . | . . . . . Recycling Units . | . . . . . Scanalyzers . | . . . . . Garrison Access . | . . . . . Data Cores Recovered . | . . . . . Used . | . . . . . Hacking Detections 12 | . 1 7 1 3 Full Trace Events 2 | . 1 1 . . Feedback Events . | . . . . . Feedback Blocked . | . . . . . Robot Schematics Acquired . | . . . . . Robots Built . | . . . . . Authchips . | . . . . . Time . | . . . . . Total Robot Build Rating . | . . . . . Part Schematics Acquired . | . . . . . Parts Built . | . . . . . Authchips . | . . . . . Time . | . . . . . Total Part Build Rating . | . . . . . Part Studies Acquired . | . . . . . Parts Repaired . | . . . . . Time . | . . . . . Parts Recycled . | . . . . . Recycled Matter . | . . . . . Retrieved Matter . | . . . . . Retrieved Components . | . . . . . Parts Scanalyzed . | . . . . . Part Schematics Acquired . | . . . . . Parts Damaged . | . . . . . Bothacking | -11 -10 -9 -8 -8 ------------ Run | Yrd Mat Mat Mat Sto Used RIF Installer . | . . . . . Robots Hacked . | . . . . . Non-combat . | . . . . . Combat . | . . . . . Robot Hacks Applied . | . . . . . Relay Couplers Released 2 | . . . . 2 Machine Destruction 2 | . . . . 2 Fabnet Peak Effective % . | . . . . . Robots Rewired . | . . . . . Allies Hacked . | . . . . . Hacks Repelled . | . . . . . Allies | -11 -10 -9 -8 -8 -------- Run | Yrd Mat Mat Mat Sto Total Allies 2 | . . 2 . . Largest Group 2 | . . 2 . . Highest-Rated Group 20 | . . 20 . . Highest-Rated Ally 10 | . . 10 . . Total Orders . | . . . . . Ally Attacks . | . . . . . Total Damage . | . . . . . Kills . | . . . . . Allies Corrupted . | . . . . . Allies Melted . | . . . . . Intel | -11 -10 -9 -8 -8 ------- Run | Yrd Mat Mat Mat Sto Active Infowar (turns) 1204 | . . 844 249 111 Terrain 111 | . . . . 111 Traps 1093 | . . 844 249 . Robot Analysis Total . | . . . . . Derelict Logs Recovered . | . . . . . Drone Launches . | . . . . . Drone Recoveries . | . . . . . Exploration | -11 -10 -9 -8 -8 ------------- Run | Yrd Mat Mat Mat Sto Turns Passed 4053 | 86 354 1358 1085 1170 Spaces Moved 1749 | 65 271 629 383 401 Core 63 | 5 . . . 58 Treads 981 | . . 354 383 244 Legs 346 | 60 200 . . 86 Wheels 13 | . . . . 13 Hover . | . . . . . Flight 346 | . 71 275 . . Fastest Speed 31 | 50 37 31 240 50 Average Speed 178 | 114 98 157 240 216 Slowest Speed 1450 | 120 120 480 240 1450 Overloaded Moves . | . . . . . Propulsion Burnouts . | . . . . . Robots Hopped 9 | . . 9 . . Potential Cave-ins . | . . . . . Cave-ins Triggered . | . . . . . Exploration Rate (%) 31 | 4 27 49 26 50 Regions Visited 4 Branch Regions 1 Pre-discovered Areas . | . . . . . Known Exits Taken 1 | . . 1 . . Unknown Exits Taken 3 | 1 1 . 1 . Scrap Searched . | . . . . . Spaces Dug . | . . . . . Terrain Destroyed 19 | . . 16 . 3 Melee . | . . . . . Projectile . | . . . . . AOE 19 | . . 16 . 3 Terrain Rammed . | . . . . . Walls Destroyed . | . . . . . Machines Disabled . | . . . . . Actions | -11 -10 -9 -8 -8 --------- Run | Yrd Mat Mat Mat Sto Total 2266 | 73 316 828 477 572 Wait 156 | . 6 70 26 54 Move 1728 | 64 270 611 382 401 Hop 8 | . . 8 . . Pick Up 46 | 3 7 10 15 11 Fast Attach 27 | 6 2 9 1 9 Attach 20 | . 6 6 3 5 Detach 2 | . 1 1 . . Swap 22 | . . 6 8 8 Drop 11 | . 1 . 5 5 Fire 226 | . 23 107 35 61 Melee 18 | . . . . 18 Ram . | . . . . . Kick . | . . . . . Crush 2 | . . . 2 . Escape Stasis . | . . . . . Rewire . | . . . . . Trap . | . . . . . Miscellaneous . | . . . . . Route ------- -11/Scrapyard -10/Materials -9/Materials (discovered 3 exits: *Mat x3) -8/Materials -8/Storage (discovered 1 exit: [*Fac]) History --------- Turn | Location | Event 3 | -11/Scrapyard | Discovered new exit (range 16) 87 | -11/Scrapyard | Entered Materials 312 | -10/Materials | Build established: Mutant 403 | -10/Materials | Released all parts (7) 434 | -10/Materials | Discovered new exit (range 16) 441 | -10/Materials | Entered another Materials area 441 | -9/Materials | Evolved 2 slots: Propulsion x2 691 | -9/Materials | Lost 8 parts (1p6n1w) 1020 | -9/Materials | Identified exit to Materials 1799 | -9/Materials | Entered another Materials area 1799 | -8/Materials | Evolved 2 slots: Utility x2 2786 | -8/Materials | Discovered new exit (range 12) 2884 | -8/Materials | Entered Storage 3428 | -8/Storage | Garrison activated, responded to threat 3623 | -8/Storage | System corruption reached 10% 3661 | -8/Storage | Core integrity fell below 50% 3683 | -8/Storage | Lost 10 parts (1p5n3u1w) 3728 | -8/Storage | Core integrity fell below 20% 3904 | -8/Storage | Released all parts (3) 3935 | -8/Storage | Lost 4 parts (1n3w) 3964 | -8/Storage | Discovered new exit (range 15) 4054 | -8/Storage | Destroyed by D-53 Grenadier with Mini Grenade Launcher Last Messages --------------- 03967_ I-25 Savior destroyed. 03969_ Acquired 9 matter. 03971_ Acquired Imp. Ion Engine. 03972_ System corrupted: Energy discharge (-7). 03986_ Connecting with Door Terminal... 03988_ K-01 Serf collects debris. 03989_ Connecting with Terminal... >>Traps(Locate) Found 8 traps in 2 arrays: 4x Ambush Trap 4x Ambush Trap Map updated. 03993_ System corrupted: VSS Leg fused. 04017_ System corrupted: Energy discharge (-21). 04037_ 1N|E02A%PRBAJT2P&NXFWONYR3Z9 04046_ ALERT: Infestation has breached Complex 0b10, dispatching Demolisher response squad. 04048_ U-05 Engineer destroyed. 04052_ C-45 Heavy ARC bursts open, deploying its payload. 04052_ D-53 Grenadier unfolds itself. Map ----- +----------------------------------------------------+ | ??#?????????#% # #?# # !! !##?????????? | | ????######### = # ### #! !! #??????????? | | ??#?# ## # #?#%#######+###??? ??????? | | ????# #? ! # ###+####?##%########+#???? | | ?#?## #?? # # ]#??# %=% #???? | | ????# #? ?? # #=% #??# * #???? | | ??#?# #######/# # % #### % =###?? | | ????# + %+/ % # % %%= | | #?#?####+### %# = # #####+##### | | ?#?## # %/= # #?????????? | | ?#??# ##%= ### + "Y" ????? | | ??### ##= ### #### ??? | | #??## ######## % ######## #??? ? | | #??## ########+## ##???#?####### | | ????# ## #### ##########? ??????????? | | ?#??# !%=#? """ ""## ####?????#????????????? | | ?#??####=*## """ ""## ##??#?#????? ?????????? | | ?##?#?## ## """ T"##+##???#????????????????? | | ???##?## ## ""## ?###??#??? ??????????? | | ?#??##?# ## """ "????? ?#?##??????????????? | | ?#?#???# ## """ ##? ?? #?#??#?????????????? | | #???#### + """ ###? ????#??#?????????????? | | ??#???## # ? u ?#?############?? ?????????? | | #?#??#?# #####+ ##### #????????????? | | #??##### o # #????????????? | | #?##?#T# d @/ #????????????? | | ??#??" + % d ### +????????????? | | ???? " # ######## ?# #????????????? | | ??#??" # ######## ### """ """ # ???????????? | | ?##?#### T#?????## #### """ """ ##???????????? | | ????#?## ###?#???# ##?# """ """??????????????? | | ?????### ###??#### #??#########?##???????????? | | ????#### < ##??#?#?# #?"???? #?##?????#????????? | | ?#?????# #????#### # ""?"? ??????????????????? | | ???#?###########??## #??"""? T???##????????????? | | ?????##?######??#### # ?? ? #?####????????????? | | ???????#?#??#?????## #? ??? ????##?????????????? | | #??????????###?R??##%##?##?##????#?????????????? | | ?#??????#?#?#?? "?## ^^^ ?? ?? ???????????????? | | ?????#?##?##?? ? ??# ^ ? ??????#??????????????? | | ???????#?#?????? ?# ?^^??" ?#????????????????? | | ?????????#?##?? ???? ?????? ??#???????????????? | | ???????????????????? ????"???#????????????????? | | ???????????#???????# ? ??? ???????????????????? | | ??????????????"?"??? ???? ??? ????????????????? | | ???????????#????????##??????#??????????????????? | | ?????????????????##?#??????????????????????????? | | ????????????????#?#???#????????????????????????? | | ???????????????????????????????????????????????? | | | +----------------------------------------------------+ Best States ------------- Heat Dissipation 45 Energy Generation 14 Energy Capacity 410 Matter Stores 300 Matter Capacity 300 Sight Range 16 Terrain Scan Range 16 Terrain Scan Density 110 Evasion (%) 62 Recoil Reduction 8 Offensive Hacking 10 Item Schematics ----------------- None Robot Schematics ------------------ None Fabricated ------------ Nothing Repaired ---------- Nothing Studied --------- None Alien Tech Used ----------------- None Achievements -------------- None Challenges ------------ None Game ------ Seed DisruptionSixDeconstructor Manual? 0 Play Time 00:33:38 Cumulative 227.4 hours Start 2025.11.02 @ 21:15:12 End 2025.11.03 @ 08:06:02 Sessions 3 Manual Loads 0 Difficulty Rogue Special Mode None Game No. 277 Rogue 103 Adventurer 174 Explorer 0 Win Type - Total 1 Types 1/0/0/0/0/0/0/0/0/0 Lore% 62 Gallery% 59 Achievement% 41 Wizard Run 0 Options --------- Layout 0 ASCII 0 Keyboard 1 Movement Numpad Keybinds 0 Fullscreen 1 Font 18/Terminus Map View 76x50 Zoom Use 0% Tactical HUD 1 Map Filters NONE Filters NONE Steam 1 RUN: d9c1b70a-212f-4963-a38c-aef3a264b2a3